fUSD/lending_fUSD_20240606
["ID","MTS","AMOUNT","RATE_DAILY","PERIOD"]
[328654236,1717679461952,-500.0,0.00027671,4]
[328654237,1717679461961,-500.0,0.00027671,4]
[328654238,1717679461970,-500.0,0.00027671,4]
[328654239,1717679461979,-500.0,0.00027671,4]
[328654240,1717679461988,-500.0,0.00027671,4]
[328654241,1717679461998,-500.0,0.00027671,4]
[328654242,1717679462007,-500.0,0.00027671,4]
[328654243,1717679462016,-500.0,0.00027671,4]
[328654244,1717679462025,-500.0,0.00027671,4]
[328654245,1717679462034,-500.0,0.00027671,4]
[328654246,1717679462044,-500.0,0.00027671,4]
[328654247,1717679462053,-500.0,0.00027671,4]
[328654248,1717679462062,-611.35321068,0.00027671,4]
[328654249,1717679462071,-500.0,0.00027671,4]
[328654250,1717679462080,-490.93436051,0.00027671,4]
[328654251,1717679462089,-500.0,0.00027671,4]
[328654252,1717679462098,-500.0,0.00027671,4]
[328654253,1717679462107,-500.0,0.00027671,4]
[328654254,1717679462116,-500.0,0.00027671,4]
[328654255,1717679462126,-500.0,0.00027671,4]
[328654256,1717679462135,-500.0,0.00027671,4]
[328654257,1717679462145,-500.0,0.00027671,4]
[328654258,1717679462154,-500.0,0.00027671,4]
[328654259,1717679462163,-500.0,0.00027671,4]
[328654260,1717679462174,-500.0,0.00027671,4]
[328654261,1717679462184,-500.0,0.00027671,4]
[328654262,1717679462194,-500.0,0.00027671,2]
[328654263,1717679462203,-500.0,0.00027671,4]
[328654264,1717679462214,-500.0,0.00027671,4]
[328654265,1717679462225,-500.0,0.00027671,4]
[328654266,1717679462236,-705.94,0.00027671,4]
[328654267,1717679462249,-500.0,0.00027671,4]
[328654268,1717679462258,-500.0,0.00027671,4]
[328654269,1717679462268,-500.0,0.00027671,4]
[328654270,1717679462280,-500.0,0.00027671,4]
[328654271,1717679462294,-500.0,0.00027671,4]
[328654272,1717679462304,-155.225321,0.00027671,7]
[328654273,1717679462315,-500.0,0.00027671,4]
[328654274,1717679462324,-500.0,0.00027671,4]
[328654275,1717679462335,-500.0,0.00027671,4]
[328654276,1717679462345,-500.0,0.00027671,4]
[328654277,1717679462357,-500.0,0.00027671,4]
[328654278,1717679462367,-500.0,0.00027671,4]
[328654279,1717679462380,-558.60481007,0.00027671,4]
[328654280,1717679462390,-500.0,0.00027671,4]
[328654281,1717679462401,-500.0,0.00027671,4]
[328654282,1717679462411,-500.0,0.00027671,4]
[328654283,1717679462420,-500.0,0.00027671,4]
[328654284,1717679462430,-500.0,0.00027671,4]
[328654285,1717679462439,-500.0,0.00027671,4]
[328654286,1717679462448,-500.0,0.00027671,4]
[328654287,1717679462458,-500.0,0.00027671,4]
[328654288,1717679462468,-500.0,0.00027671,4]
[328654289,1717679462479,-500.0,0.00027671,4]
[328654290,1717679462489,-567.87,0.00027671,4]
[328654291,1717679462499,-500.0,0.00027671,4]
[328654292,1717679462508,-500.0,0.00027671,4]
[328654293,1717679462517,-527.07001103,0.00027671,4]
[328654294,1717679462526,-500.0,0.00027671,4]
[328654295,1717679462536,-790.89,0.00027671,4]
[328654296,1717679462545,-500.0,0.00027671,4]
[328654297,1717679462555,-500.0,0.00027671,4]
[328654298,1717679462564,-500.0,0.00027671,4]
[328654299,1717679462573,-519.02617793,0.00027671,4]
[328654300,1717679462583,-500.0,0.00027671,4]
[328654301,1717679462592,-553.97,0.00027671,4]
[328654302,1717679462602,-500.0,0.00027671,4]
[328654303,1717679462611,-500.0,0.00027671,4]
[328654304,1717679462620,-500.0,0.00027671,4]
[328654305,1717679462630,-500.0,0.00027671,4]
[328654306,1717679462640,-500.0,0.00027671,4]
[328654307,1717679462650,-500.0,0.00027671,4]
[328654308,1717679462659,-500.0,0.00027671,4]
[328654309,1717679462668,-500.0,0.00027671,4]
[328654310,1717679462678,-500.0,0.00027671,4]
[328654311,1717679462687,-500.0,0.00027671,4]
[328654312,1717679462696,-500.0,0.00027671,4]
[328654313,1717679462705,-500.0,0.00027671,4]
[328654314,1717679462714,-500.0,0.00027671,4]
[328654315,1717679462724,-500.0,0.00027671,4]
[328654316,1717679462733,-151.0,0.00027671,7]
[328654317,1717679462742,-151.0,0.00027671,7]
[328654318,1717679462752,-500.0,0.00027671,4]
[328654319,1717679462761,-500.0,0.00027671,4]
[328654320,1717679462771,-504.06374306,0.00027671,4]
[328654321,1717679462780,-500.0,0.00027671,4]
[328654322,1717679462790,-500.0,0.00027671,4]
[328654323,1717679462799,-500.0,0.00027671,4]
[328654324,1717679462808,-500.0,0.00027671,4]
[328654325,1717679462818,-500.0,0.00027671,2]
[328654326,1717679462827,-500.0,0.00027671,4]
[328654327,1717679462836,-500.0,0.00027671,4]
[328654328,1717679462846,-525.88913874,0.00027671,4]
[328654329,1717679462856,-500.0,0.00027671,4]
[328654330,1717679462867,-524.35996896,0.00027671,4]
[328654331,1717679462876,-500.0,0.00027671,4]
[328654332,1717679462885,-500.0,0.00027671,4]
[328654333,1717679462895,-500.0,0.00027671,4]
[328654334,1717679462904,-500.0,0.00027671,4]
[328654335,1717679462913,-151.0,0.00027671,7]
[328654336,1717679462923,-500.0,0.00027671,4]
[328654337,1717679462932,-1072.73,0.00027671,4]
[328654338,1717679462941,-460.78278935,0.00027671,4]
[328654339,1717679462951,-500.0,0.00027671,4]
[328654340,1717679462961,-500.0,0.00027671,4]
[328654341,1717679462972,-500.0,0.00027671,4]
[328654342,1717679462981,-500.0,0.00027671,4]
[328654343,1717679462991,-500.0,0.00027671,4]
[328654344,1717679463002,-500.0,0.00027671,4]
[328654345,1717679463012,-500.0,0.00027671,4]
[328654346,1717679463021,-500.0,0.00027671,4]
[328654347,1717679463030,-500.0,0.00027671,4]
[328654348,1717679463039,-500.0,0.00027671,4]
[328654349,1717679463048,-500.0,0.00027671,4]
[328654350,1717679463057,-500.0,0.00027671,4]
[328654351,1717679463067,-407.20124643,0.00027671,4]
[328654352,1717679463076,-562.5,0.00027671,4]
[328654353,1717679463085,-500.0,0.00027671,4]
[328654354,1717679463094,-500.0,0.00027671,4]
[328654355,1717679463104,-500.0,0.00027671,4]
[328654356,1717679463114,-500.0,0.00027671,4]
[328654357,1717679463124,-500.0,0.00027671,4]
[328654358,1717679463134,-500.0,0.00027671,4]
[328654359,1717679463143,-1257.38,0.00027671,4]
[328654360,1717679463152,-551.98876894,0.00027671,4]
[328654361,1717679463161,-500.0,0.00027671,4]
[328654362,1717679463170,-500.0,0.00027671,4]
[328654363,1717679463179,-500.0,0.00027671,4]
[328654364,1717679463189,-500.0,0.00027671,4]
[328654365,1717679463198,-594.07,0.00027671,4]
[328654366,1717679463207,-500.0,0.00027671,4]
[328654367,1717679463216,-546.46220347,0.00027671,4]
[328654368,1717679463226,-660.28,0.00027671,4]
[328654369,1717679463235,-500.0,0.00027671,4]
[328654370,1717679463244,-500.0,0.00027671,2]
[328654371,1717679463255,-300.269741,0.00027671,7]
[328654372,1717679463264,-500.0,0.00027671,4]
[328654373,1717679463274,-500.0,0.00027671,4]
[328654374,1717679463283,-500.0,0.00027671,4]
[328654375,1717679463293,-151.0,0.00027671,7]
[328654376,1717679463304,-873.96,0.00027671,4]
[328654377,1717679463314,-607.07789125,0.00027671,4]
[328654378,1717679463323,-523.48822949,0.00027671,4]
[328654379,1717679463335,-500.0,0.00027671,4]
[328654380,1717679463445,-500.0,0.00027671,4]
[328654381,1717679463464,-539.89723518,0.00027671,4]
[328654382,1717679463476,-500.0,0.00027671,4]
[328654383,1717679463486,-500.0,0.00027671,4]
[328654384,1717679463496,-500.0,0.00027671,2]
[328654385,1717679463508,-500.0,0.00027671,4]
[328654386,1717679463517,-500.0,0.00027671,4]
[328654387,1717679463527,-500.0,0.00027671,4]
[328654388,1717679463537,-324.43440616,0.00027671,4]
[328654389,1717679463546,-570.05,0.00027671,4]
[328654390,1717679463556,-500.0,0.00027671,4]
[328654391,1717679463567,-408.54596909,0.00027671,4]
[328654392,1717679463576,-500.0,0.00027671,4]
[328654393,1717679463585,-500.0,0.00027671,4]
[328654394,1717679463595,-1167.65,0.00027671,4]
[328654395,1717679463605,-500.0,0.00027671,4]
[328654396,1717679463614,-500.0,0.00027671,4]
[328654397,1717679463623,-545.60054073,0.00027671,4]
[328654398,1717679463633,-500.0,0.00027671,4]
[328654399,1717679463642,-1040.77,0.00027671,4]
[328654400,1717679463652,-500.0,0.00027671,4]
[328654401,1717679463661,-500.0,0.00027671,4]
[328654402,1717679463670,-730.53,0.00027671,4]
[328654403,1717679463680,-500.0,0.00027671,4]
[328654404,1717679463689,-500.0,0.00027671,4]
[328654405,1717679463698,-500.0,0.00027671,4]
[328654406,1717679463708,-500.0,0.00027671,4]
[328654407,1717679463718,-500.0,0.00027671,4]
[328654408,1717679463729,-500.0,0.00027671,4]
[328654409,1717679463739,-511.59589561,0.00027671,4]
[328654410,1717679463750,-500.0,0.00027671,4]
[328654411,1717679463759,-1160.4,0.00027671,4]
[328654412,1717679463769,-500.0,0.00027671,4]
[328654413,1717679463778,-500.0,0.00027671,4]
[328654414,1717679463788,-500.0,0.00027671,4]
[328654415,1717679463797,-500.0,0.00027671,4]
[328654416,1717679463807,-564.02859095,0.00027671,4]
[328654417,1717679463816,-500.0,0.00027671,4]
[328654418,1717679463825,-500.0,0.00027671,4]
[328654419,1717679463834,-506.29478735,0.00027671,4]
[328654420,1717679463843,-500.0,0.00027671,4]
[328654421,1717679463853,-1005.2,0.00027671,4]
[328654422,1717679463862,-500.0,0.00027671,4]
[328654423,1717679463871,-500.0,0.00027671,4]
[328654424,1717679463880,-528.58965754,0.00027671,4]
[328654425,1717679463890,-555.40446833,0.00027671,4]
[328654426,1717679463900,-295.471963,0.00027671,7]
[328654427,1717679463909,-525.38964556,0.00027671,4]
[328654428,1717679463919,-500.0,0.00027671,4]
[328654429,1717679463928,-500.0,0.00027671,4]
[328654430,1717679463938,-500.0,0.00027671,4]
[328654431,1717679463947,-295.471963,0.00027671,7]
[328654432,1717679463957,-512.48077815,0.00027671,4]
[328654433,1717679463966,-2171.81879123,0.00027671,2]
[328654434,1717679463975,-500.0,0.00027671,4]
[328654435,1717679463985,-463.47025983,0.00027671,4]
[328654436,1717679463995,-500.0,0.00027671,4]
[328654437,1717679464006,-543.83,0.00027671,4]
[328654438,1717679464015,-953.7,0.00027671,4]
[328654439,1717679464024,-500.0,0.00027671,4]
[328654440,1717679464034,-500.0,0.00027671,4]
[328654441,1717679464044,-500.0,0.00027671,4]
[328654442,1717679464053,-526.78912126,0.00027671,4]
[328654443,1717679464062,-500.0,0.00027671,4]
[328654444,1717679464072,-500.0,0.00027671,4]
[328654445,1717679464080,-500.0,0.00027671,4]
[328654446,1717679464090,-500.0,0.00027671,4]
[328654447,1717679464099,-528.16899133,0.00027671,4]
[328654448,1717679464108,-533.26167161,0.00027671,4]
[328654449,1717679464117,-714.89,0.00027671,4]
[328654450,1717679464127,-537.3,0.00027671,4]
[328654451,1717679464136,-500.0,0.00027671,4]
[328654452,1717679464145,-500.0,0.00027671,4]
[328654453,1717679464154,-537.37621636,0.00027671,4]
[328654454,1717679464163,-151.0,0.00027671,7]
[328654455,1717679464172,-500.0,0.00027671,4]
[328654456,1717679464181,-500.0,0.00027671,4]
[328654457,1717679464190,-552.33783411,0.00027671,4]
[328654458,1717679464199,-578.81353235,0.00027671,4]
[328654459,1717679464215,-519.51773674,0.00027671,4]
[328654460,1717679464237,-500.0,0.00027671,4]
[328654461,1717679464255,-1078.37,0.00027671,4]
[328654462,1717679464273,-500.0,0.00027671,4]
[328654463,1717679464298,-500.0,0.00027671,4]
[328654464,1717679464315,-655.81,0.00027671,4]
[328654465,1717679464335,-500.0,0.00027671,4]
[328654466,1717679464350,-500.0,0.00027671,4]
[328654467,1717679464367,-500.0,0.00027671,4]
[328654468,1717679464387,-500.0,0.00027671,4]
[328654469,1717679464404,-541.66,0.00027671,4]
[328654470,1717679464417,-500.0,0.00027671,4]
[328654471,1717679464435,-500.0,0.00027671,4]
[328654472,1717679464450,-544.18989148,0.00027671,4]
[328654473,1717679464467,-632.72,0.00027671,4]
[328654474,1717679464481,-500.0,0.00027671,4]
[328654475,1717679464496,-500.0,0.00027671,4]
[328654476,1717679464513,-531.86072344,0.00027671,4]
[328654477,1717679464527,-525.98570404,0.00027671,4]
[328654478,1717679464542,-500.0,0.00027671,4]
[328654479,1717679464557,-500.0,0.00027671,4]
[328654480,1717679464572,-540.85,0.00027671,4]
[328654481,1717679464587,-500.0,0.00027671,4]
[328654482,1717679464604,-320.21674931,0.00027671,4]
[328654483,1717679464619,-250.0,0.00027671,4]
[328654484,1717679464635,-500.0,0.00027671,4]
[328654485,1717679464650,-500.0,0.00027671,4]
[328654486,1717679464665,-500.0,0.00027671,4]
[328654487,1717679464680,-500.0,0.00027671,4]
[328654488,1717679464695,-535.49284391,0.00027671,4]
[328654489,1717679464710,-500.0,0.00027671,4]
[328654490,1717679464725,-500.0,0.00027671,4]
[328654491,1717679464739,-500.0,0.00027671,4]
[328654492,1717679464757,-500.0,0.00027671,4]
[328654493,1717679464772,-500.0,0.00027671,4]
[328654494,1717679464788,-1540.24,0.00027671,4]
[328654495,1717679464808,-500.0,0.00027671,4]
[328654496,1717679464822,-500.0,0.00027671,4]
[328654497,1717679464837,-616.01,0.00027671,4]
[328654498,1717679464853,-500.0,0.00027671,4]
[328654499,1717679464868,-500.0,0.00027671,4]
[328654500,1717679464882,-500.0,0.00027671,4]
[328654501,1717679464897,-500.0,0.00027671,4]
[328654502,1717679464912,-631.52,0.00027671,4]
[328654503,1717679464926,-479.97889632,0.00027671,4]
[328654504,1717679464941,-500.0,0.00027671,4]
[328654505,1717679464956,-500.0,0.00027671,4]
[328654506,1717679464971,-500.0,0.00027671,4]
[328654507,1717679464985,-464.40221632,0.00027671,2]
[328654508,1717679465000,-3814.34,0.00027671,4]
[328654509,1717679465015,-500.0,0.00027671,4]
[328654510,1717679465029,-546.93174491,0.00027671,4]
[328654511,1717679465044,-179.451419,0.00027671,7]
[328654512,1717679465059,-500.0,0.00027671,4]
[328654513,1717679465074,-500.0,0.00027671,4]
[328654514,1717679465089,-500.0,0.00027671,4]
[328654515,1717679465103,-500.0,0.00027671,4]
[328654516,1717679465118,-500.0,0.00027671,4]
[328654517,1717679465133,-500.0,0.00027671,4]
[328654518,1717679465147,-500.0,0.00027671,4]
[328654519,1717679465162,-179.451419,0.00027671,7]
[328654520,1717679465176,-833.49,0.00027671,4]
[328654521,1717679465191,-500.0,0.00027671,4]
[328654522,1717679465205,-540.40553836,0.00027671,4]
[328654523,1717679465220,-500.0,0.00027671,4]
[328654524,1717679465235,-500.0,0.00027671,4]
[328654525,1717679465252,-500.0,0.00027671,4]
[328654526,1717679465267,-644.57,0.00027671,4]
[328654527,1717679465282,-500.0,0.00027671,4]
[328654528,1717679465301,-500.0,0.00027671,4]
[328654529,1717679465315,-500.0,0.00027671,4]
[328654530,1717679465330,-1007.24,0.00027671,4]
[328654531,1717679465346,-500.0,0.00027671,4]
[328654532,1717679465360,-500.0,0.00027671,4]
[328654533,1717679465375,-500.0,0.00027671,4]
[328654534,1717679465390,-500.0,0.00027671,4]
[328654535,1717679465405,-1055.19,0.00027671,4]
[328654536,1717679465421,-500.0,0.00027671,4]
[328654537,1717679465436,-875.26,0.00027671,4]
[328654538,1717679465600,-500.0,0.00027671,4]
[328654539,1717679465616,-151.0,0.00027671,7]
[328654540,1717679465626,-500.0,0.00027671,4]
[328654541,1717679465635,-500.0,0.00027671,4]
[328654542,1717679465645,-500.0,0.00027671,4]
[328654543,1717679465654,-500.0,0.00027671,4]
[328654544,1717679465663,-500.0,0.00027671,4]
[328654545,1717679465673,-522.25436774,0.00027671,4]
[328654546,1717679465682,-500.0,0.00027671,4]
[328654547,1717679465690,-500.0,0.00027671,4]
[328654548,1717679465700,-576.92644213,0.00027671,4]
[328654549,1717679465710,-500.0,0.00027671,4]
[328654550,1717679465719,-500.0,0.00027671,4]
[328654551,1717679465728,-500.0,0.00027671,4]
[328654552,1717679465738,-561.44,0.00027671,4]
[328654553,1717679465748,-469.24467885,0.00027671,4]
[328654554,1717679465758,-500.0,0.00027671,4]
[328654555,1717679465768,-759.25,0.00027671,4]
[328654556,1717679465777,-500.0,0.00027671,4]
[328654557,1717679465787,-500.0,0.00027671,4]
[328654558,1717679465796,-151.0,0.00027671,7]
[328654559,1717679465805,-500.0,0.00027671,4]
[328654560,1717679465815,-500.0,0.00027671,4]
[328654561,1717679465824,-544.17,0.00027671,4]
[328654562,1717679465833,-500.0,0.00027671,4]
[328654563,1717679465843,-500.0,0.00027671,4]
[328654564,1717679465852,-500.0,0.00027671,4]
[328654565,1717679465861,-500.0,0.00027671,4]
[328654566,1717679465870,-500.0,0.00027671,4]
[328654567,1717679465879,-500.0,0.00027671,4]
[328654568,1717679465888,-500.0,0.00027671,4]
[328654569,1717679465898,-511.34347698,0.00027671,4]
[328654570,1717679465907,-754.39,0.00027671,4]
[328654571,1717679465917,-500.0,0.00027671,4]
[328654572,1717679465926,-500.0,0.00027671,4]
[328654573,1717679465936,-852.58,0.00027671,4]
[328654574,1717679465946,-535.87143268,0.00027671,4]
[328654575,1717679465956,-500.0,0.00027671,4]
[328654576,1717679465965,-419.76009324,0.00027671,4]
[328654577,1717679465975,-500.0,0.00027671,4]
[328654578,1717679465985,-200.0,0.00027671,4]
[328654579,1717679465994,-574.56,0.00027671,4]
[328654580,1717679466005,-500.0,0.00027671,4]
[328654581,1717679466014,-623.99,0.00027671,4]
[328654582,1717679466023,-618.6,0.00027671,4]
[328654583,1717679466032,-500.0,0.00027671,4]
[328654584,1717679466041,-500.0,0.00027671,4]
[328654585,1717679466051,-735.41,0.00027671,4]
[328654586,1717679466060,-500.0,0.00027671,4]
[328654587,1717679466070,-566.09907088,0.00027671,4]
[328654588,1717679466079,-500.0,0.00027671,4]
[328654589,1717679466089,-500.0,0.00027671,4]
[328654590,1717679466098,-500.0,0.00027671,4]
[328654591,1717679466107,-515.29,0.00027671,4]
[328654592,1717679466117,-500.0,0.00027671,4]
[328654593,1717679466126,-604.46,0.00027671,4]
[328654594,1717679466136,-500.0,0.00027671,4]
[328654595,1717679466145,-500.0,0.00027671,4]
[328654596,1717679466155,-500.0,0.00027671,4]
[328654597,1717679466164,-543.45251915,0.00027671,4]
[328654598,1717679466174,-500.0,0.00027671,4]
[328654599,1717679466183,-500.0,0.00027671,4]
[328654600,1717679466193,-543.16103954,0.00027671,4]
[328654601,1717679466202,-624.01,0.00027671,4]
[328654602,1717679466212,-500.0,0.00027671,4]
[328654603,1717679466221,-500.0,0.00027671,4]
[328654604,1717679466231,-701.26,0.00027671,4]
[328654605,1717679466240,-492.76765987,0.00027671,4]
[328654606,1717679466249,-500.0,0.00027671,4]
[328654607,1717679466260,-500.0,0.00027671,4]
[328654608,1717679466270,-949.7,0.00027671,4]
[328654609,1717679466279,-551.18879589,0.00027671,4]
[328654610,1717679466289,-500.0,0.00027671,4]
[328654611,1717679466302,-500.0,0.00027671,4]
[328654612,1717679466312,-500.0,0.00027671,4]
[328654613,1717679466321,-500.0,0.00027671,4]
[328654614,1717679466332,-500.0,0.00027671,4]
[328654615,1717679466342,-500.0,0.00027671,4]
[328654616,1717679466352,-500.0,0.00027671,4]
[328654617,1717679466361,-500.0,0.00027671,4]
[328654618,1717679466373,-500.0,0.00027671,4]
[328654619,1717679466382,-500.0,0.00027671,4]
[328654620,1717679466392,-500.0,0.00027671,4]
[328654621,1717679466402,-500.0,0.00027671,4]
[328654622,1717679466412,-500.0,0.00027671,4]
[328654623,1717679466421,-500.0,0.00027671,4]
[328654624,1717679466431,-652.57,0.00027671,4]
[328654625,1717679466441,-162.73758938,0.00027671,4]
[328654626,1717679466450,-624.92,0.00027671,4]
[328654627,1717679466460,-500.0,0.00027671,4]
[328654628,1717679466469,-500.0,0.00027671,4]
[328654629,1717679466479,-500.0,0.00027671,4]
[328654630,1717679466488,-500.0,0.00027671,4]
[328654631,1717679466497,-500.0,0.00027671,4]
[328654632,1717679466508,-500.0,0.00027671,4]
[328654633,1717679466518,-500.0,0.00027671,4]
[328654634,1717679466528,-500.0,0.00027671,4]
[328654635,1717679466538,-500.0,0.00027671,4]
[328654636,1717679466548,-500.0,0.00027671,4]
[328654637,1717679466558,-500.0,0.00027671,4]
[328654638,1717679466567,-269.777891,0.00027671,7]
[328654639,1717679466577,-500.0,0.00027671,4]
[328654640,1717679466586,-269.777891,0.00027671,7]
[328654641,1717679466596,-500.0,0.00027671,4]
[328654642,1717679466606,-500.0,0.00027671,4]
[328654643,1717679466616,-269.777891,0.00027671,7]
[328654644,1717679466625,-500.0,0.00027671,4]
[328654645,1717679466634,-694.2,0.00027671,4]
[328654646,1717679466644,-269.777891,0.00027671,7]
[328654647,1717679466654,-500.0,0.00027671,4]
[328654648,1717679466663,-500.0,0.00027671,4]
[328654649,1717679466673,-500.0,0.00027671,4]
[328654650,1717679466683,-151.0,0.00027671,7]
[328654651,1717679466692,-151.0,0.00027671,7]
[328654652,1717679466702,-500.0,0.00027671,4]
[328654653,1717679466711,-544.90599897,0.00027671,4]
[328654654,1717679466720,-2878.4,0.00027671,4]
[328654655,1717679466730,-500.0,0.00027671,4]
[328654656,1717679466740,-402.85473695,0.00027671,4]
[328654657,1717679466750,-534.4,0.00027671,2]
[328654658,1717679466761,-500.0,0.00027671,4]
[328654659,1717679466770,-694.35,0.00027671,4]
[328654660,1717679466779,-543.75,0.00027671,4]
[328654661,1717679466789,-526.87593644,0.00027671,4]
[328654662,1717679466799,-500.0,0.00027671,4]
[328654663,1717679466808,-500.0,0.00027671,4]
[328654664,1717679466818,-548.36132171,0.00027671,4]
[328654665,1717679466828,-500.0,0.00027671,4]
[328654666,1717679466838,-500.0,0.00027671,4]
[328654667,1717679466848,-500.0,0.00027671,4]
[328654668,1717679466858,-500.0,0.00027671,4]
[328654669,1717679466868,-500.0,0.00027671,4]
[328654670,1717679466877,-159.56974967,0.00027671,4]
[328654671,1717679466887,-500.0,0.00027671,4]
[328654672,1717679466897,-536.57062977,0.00027671,4]
[328654673,1717679466906,-500.0,0.00027671,4]
[328654674,1717679466916,-532.20919249,0.00027671,4]
[328654675,1717679466926,-500.0,0.00027671,4]
[328654676,1717679466936,-500.0,0.00027671,4]
[328654677,1717679466946,-561.63,0.00027671,4]
[328654678,1717679466955,-777.5,0.00027671,4]
[328654679,1717679466964,-500.0,0.00027671,4]
[328654680,1717679466973,-500.0,0.00027671,4]
[328654681,1717679466982,-728.03,0.00027671,4]
[328654682,1717679466991,-151.0,0.00027671,7]
[328654683,1717679467001,-151.0,0.00027671,7]
[328654684,1717679467010,-500.0,0.00027671,4]
[328654685,1717679467019,-500.0,0.00027671,4]
[328654686,1717679467028,-500.0,0.00027671,14]
[328654687,1717679467037,-525.97,0.00027671,4]
[328654688,1717679467046,-500.0,0.00027671,4]
[328654689,1717679467056,-273.04714962,0.00027671,4]
[328654690,1717679467065,-509.08501768,0.00027671,4]
[328654691,1717679467074,-500.0,0.00027671,4]
[328654692,1717679467083,-542.14494351,0.00027671,4]
[328654693,1717679467093,-500.0,0.00027671,4]
[328654694,1717679467102,-835.99,0.00027671,4]
[328654695,1717679467111,-500.0,0.00027671,4]
[328654696,1717679467121,-500.0,0.00027671,4]
[328654697,1717679467130,-209.488092,0.00027671,7]
[328654698,1717679467140,-500.0,0.00027671,4]
[328654699,1717679467149,-500.0,0.00027671,4]
[328654700,1717679467159,-1147.48,0.00027671,4]
[328654701,1717679467168,-500.0,0.00027671,4]
[328654702,1717679467178,-503.17,0.00027671,4]
[328654703,1717679467187,-500.0,0.00027671,4]
[328654704,1717679467196,-253.527959,0.00027671,7]
[328654705,1717679467206,-500.0,0.00027671,4]
[328654706,1717679467216,-500.0,0.00027671,4]
[328654707,1717679467225,-253.527959,0.00027671,7]
[328654708,1717679467235,-505.84,0.00027671,4]
[328654709,1717679467244,-253.527959,0.00027671,7]
[328654710,1717679467255,-554.80538676,0.00027671,4]
[328654711,1717679467265,-253.527959,0.00027671,7]
[328654712,1717679467275,-500.0,0.00027671,4]
[328654713,1717679467286,-500.0,0.00027671,4]
[328654714,1717679467298,-528.06275856,0.00027671,4]
[328654715,1717679467308,-687.52,0.00027671,4]
[328654716,1717679467316,-500.0,0.00027671,4]
[328654717,1717679467326,-500.0,0.00027671,4]
[328654718,1717679467337,-500.0,0.00027671,4]
[328654719,1717679467346,-557.11,0.00027671,4]
[328654720,1717679467355,-500.0,0.00027671,4]
[328654721,1717679467366,-500.0,0.00027671,4]
[328654722,1717679467376,-500.0,0.00027671,4]
[328654723,1717679467385,-259.94,0.00027671,4]
[328654724,1717679467394,-548.3390909,0.00027671,4]
[328654725,1717679467404,-500.0,0.00027671,4]
[328654726,1717679467414,-514.55850235,0.00027671,4]
[328654727,1717679467543,-500.0,0.00027671,4]
[328654728,1717679467556,-446.56030878,0.00027671,4]
[328654729,1717679467566,-622.96,0.00027671,4]
[328654730,1717679467576,-500.0,0.00027671,4]
[328654731,1717679467586,-538.98777908,0.00027671,4]
[328654732,1717679467595,-500.0,0.00027671,4]
[328654733,1717679467606,-610.82,0.00027671,4]
[328654734,1717679467616,-772.9,0.00027671,4]
[328654735,1717679467626,-500.0,0.00027671,4]